Cogmind - Beta 9.6 @@@ ROGUE MODE // 2020.04.30 @ 05:25:54 Player: Baran Korkmaz Result: Destroyed by G-47 Trooper with Particle Gun Performance ------------- Evolutions (2) 1000 Regions Visited (6) 1200 Robots Destroyed (4) 20 Value Destroyed (67) 67 Prototype IDs (0) 0 Alien Tech Used (0) 0 Bonus (200) 200 TOTAL SCORE: 2487 Bonus ------- Entered Garrisons 200 Cogmind --------- Core Integrity 0/550 Matter 266/300 Energy 100/100 System Corruption 0% Temperature Cool (9) Movement Core (550) Ox10 Location -8/Garrison Parts ------- > --- POWER (2) -------- (None) > --- PROPULSION (2) --- (None) > --- UTILITY (3) ------ High-capacity Storage Unit > --- WEAPON (4) ------- (None) > --- INVENTORY (12) --- Cooling System Improved Terrain Scan Processor Particle Charger Mining Laser Peak State ------------ > --- POWER ------------ Light Ion Engine > --- PROPULSION ------- Titanium Leg Combat Airjet > --- UTILITY ---------- High-capacity Storage Unit Advanced Weight Redist. System Particle Charger > --- WEAPON ----------- EM Pulse Gun Assault Rifle Light Assault Rifle > --- INVENTORY -------- Mining Laser [Rating: 19] Favorites ----------- Power Light Deuterium Engine Engine Light Deuterium Engine Propulsion Light Treads Treads Light Treads Leg Titanium Leg Wheel Wheel Hover Unit Combat Airjet Utility Small Storage Unit Device Particle Charger Storage Small Storage Unit Weapon Assault Rifle Energy Gun EM Pulse Gun Ballistic Gun Assault Rifle Launcher Grenade Launcher Special Weapon Mining Laser Build | -11 -10 -10 -10 -9 -8 -8 ------- Run | Scr Mat Min Exi Min Mat Gar Slots Evolved 4 | . . . . . 4 . Power 1 | . . . . . 1 . Propulsion . | . . . . . . . Utility 1 | . . . . . 1 . Weapon 2 | . . . . . 2 . Parts Attached 32 | 6 . 7 6 4 7 2 Power 5 | 1 . 1 . 1 2 . Engine 5 | 1 . 1 . 1 2 . Core . | . . . . . . . Reactor . | . . . . . . . Propulsion 8 | 2 . 2 2 . 2 . Treads 2 | 2 . . . . . . Leg 3 | . . . 1 . 2 . Wheel 1 | . . 1 . . . . Hover 2 | . . 1 1 . . . Flight . | . . . . . . . Utility 6 | 1 . . 3 . 1 1 Device 3 | . . . 1 . 1 1 Storage 3 | 1 . . 2 . . . Processor . | . . . . . . . Hackware . | . . . . . . . Protection . | . . . . . . . Artifact . | . . . . . . . Weapon 13 | 2 . 4 1 3 2 1 Energy Gun 3 | . . . 1 . 1 1 Energy Cannon . | . . . . . . . Ballistic Gun 6 | 2 . 2 . 2 . . Ballistic Cannon . | . . . . . . . Launcher 3 | . . 2 . 1 . . Special Weapon 1 | . . . . . 1 . Impact Weapon . | . . . . . . . Slashing Weapon . | . . . . . . . Piercing Weapon . | . . . . . . . Special Melee Weapon . | . . . . . . . Unidentified Prototypes . | . . . . . . . Parts Lost 12 | . . 2 . 1 . 9 Power 2 | . . . . . . 2 Propulsion 3 | . . 1 . . . 2 Utility 2 | . . . . . . 2 Weapon 5 | . . 1 . 1 . 3 Highest Loss Streak 9 | . . 2 . 1 . 9 Average Slot Usage (%) 90 | . 85 84 99 100 80 69 Engine 13 | . 14 14 14 14 11 14 Treads 8 | . 28 22 . . . . Leg 6 | . . . 7 14 12 12 Wheel 3 | . . 2 7 . . . Hover 8 | . . 2 14 14 5 . Device 8 | . . . 13 14 15 14 Storage 13 | . 14 14 14 14 9 9 Energy Gun 7 | . . . 13 10 6 6 Ballistic Gun 18 | . 28 24 14 17 18 12 Launcher 1 | . . 3 . . . . Naked Turns . | . . . . . . . Heaviest Build 48 | 11 11 14 44 45 48 46 Greatest Support 40 | 40 40 40 22 17 36 36 Greatest Overweight (x) 12 | 3 . 1 2 2 2 12 Average Overweight (x) . | . . . . 2 1 1 Largest Inventory Capacity 12 | 6 6 6 12 12 12 12 Average Capacity 8 | 5 6 6 8 12 12 12 Most Carried 6 | 3 3 6 5 3 4 4 Average Carried 3 | . 1 4 3 2 1 3 Final Capacity 12 | 6 6 6 12 12 12 12 Final Carried 5 | 1 3 5 3 2 4 4 Class Distribution -------------------- 100% | Mutant Dominant Class ---------------- Mutant | -10/Materials Mutant | -10/Mines Mutant | -10/Exiles Mutant | -9/Mines Mutant | -8/Materials Mutant | -8/Garrison Resources | -11 -10 -10 -10 -9 -8 -8 ----------- Run | Scr Mat Min Exi Min Mat Gar Matter Collected 605 | 260 . 160 . 131 54 . Remotely . | . . . . . . . Salvage Created 105 | . . 31 . 20 54 . Parts 6 | . . . . 4 2 . Haulers Intercepted . | . . . . . . . Recyclers Shooed 1 | . . . . 1 . . Parts Field Recycled . | . . . . . . . Retrieved Matter . | . . . . . . . Parts Self-Destructed . | . . . . . . . Prevented . | . . . . . . . Kills | -11 -10 -10 -10 -9 -8 -8 ------- Run | Scr Mat Min Exi Min Mat Gar Combat Hostiles Destroyed 4 | . . 1 . 2 1 . Guns 3 | . . . . 2 1 . AOE 1 | . . 1 . . . . Classes Destroyed 3 | . . 1 . 1 1 . Swarmer 2 | . . . . 2 . . Grunt 1 | . . . . . 1 . Assembled 1 | . . 1 . . . . Best Kill Streak 2 | . . 1 . 2 1 . Combat Bots Only 2 | . . 1 . 2 1 . Max Kills in Single Turn 1 | . . 1 . 1 1 . Gunslinging . | . . . . . . . Exploded 1 | . . 1 . . . . Melee . | . . . . . . . Uniques/NPCs Destroyed . | . . . . . . . Combat | -11 -10 -10 -10 -9 -8 -8 -------- Run | Scr Mat Min Exi Min Mat Gar Damage Taken 1839 | . . 485 . 178 46 1130 Core 621 | . . 39 . 17 . 565 Absorbed by Shields 33 | . . . . . . 33 Core Remaining (%) 88 | 100 . . . 77 . . Volleys Fired 33 | . 1 11 . 14 5 2 Largest 2 | . 2 2 . 1 2 1 Hottest 40 | . 40 40 . 30 40 40 Shots Fired 43 | . 2 15 . 14 10 2 Gun 34 | . 2 8 . 12 10 2 Cannon . | . . . . . . . Launcher 9 | . . 7 . 2 . . Special . | . . . . . . . Kinetic 33 | . 2 8 . 12 10 1 Thermal . | . . . . . . . Explosive 9 | . . 7 . 2 . . Electromagnetic 1 | . . . . . . 1 Robot Hit Streak 2 | . . 1 . 2 1 2 Robot Miss Streak 7 | . 2 7 . 2 2 1 Penetration Max . | . . . . . . . Secondary Targets . | . . . . . . . Shots Hit Robots 13 | . . 2 . 6 4 1 Core Hits 23 | . . 15 . 4 3 1 Critical Hits . | . . . . . . . Critical Kills . | . . . . . . . Critical Parts Destroyed . | . . . . . . . Melee Attacks . | . . . . . . . Impact . | . . . . . . . Slashing . | . . . . . . . Piercing . | . . . . . . . Sneak Attacks . | . . . . . . . Combat Hostiles . | . . . . . . . Follow-up Attacks . | . . . . . . . Damage Inflicted 461 | . . 303 . 91 54 13 Guns 160 | . . 13 . 80 54 13 Cannons . | . . . . . . . Explosions 301 | . . 290 . 11 . . Melee . | . . . . . . . Ramming . | . . . . . . . Kinetic 147 | . . 13 . 80 54 . Thermal . | . . . . . . . Explosive 301 | . . 290 . 11 . . Electromagnetic 13 | . . . . . . 13 Impact . | . . . . . . . Slashing . | . . . . . . . Piercing . | . . . . . . . Highest Corruption . | . . . . . . . Average Corruption . | . . . . . . . Corruption Purged . | . . . . . . . Overload Shots . | . . . . . . . Overflow Damage . | . . . . . . . Projectiles . | . . . . . . . Explosions . | . . . . . . . Melee . | . . . . . . . Knockbacks . | . . . . . . . Impact . | . . . . . . . Kinetic . | . . . . . . . Secondary . | . . . . . . . Self-Inflicted Damage 37 | . . 37 . . . . Shots 1 | . . 1 . . . . Rammed . | . . . . . . . Targets Rammed . | . . . . . . . Kicked . | . . . . . . . Crushed . | . . . . . . . Highest Temperature 5 | . . . . . 3 5 Average Temperature 3 | . . . . . 3 4 Received Heat Transfer 672 | . . . . . 27 645 Siege Activations . | . . . . . . . Robots Corrupted . | . . . . . . . Combat Hostiles . | . . . . . . . Parts Fried . | . . . . . . . Impact Corruptions . | . . . . . . . Robots Melted . | . . . . . . . Combat Hostiles . | . . . . . . . Parts Melted . | . . . . . . . Heat Transferred . | . . . . . . . Parts Sabotaged . | . . . . . . . Parts Stolen . | . . . . . . . Parts Stripped . | . . . . . . . Power Chain Reactions . | . . . . . . . Missiles Intercepted . | . . . . . . . Alert | -11 -10 -10 -10 -9 -8 -8 ------- Run | Scr Mat Min Exi Min Mat Gar Peak Influence 50 | . . . . 50 39 25 Average Influence 9 | . . . . 27 30 16 Maximum Alert Level . | . . . . . . . Low Security (%) 100 | 100 100 100 . 100 100 100 Level 1 . | . . . . . . . Level 2 . | . . . . . . . Level 3 . | . . . . . . . Level 4 . | . . . . . . . Level 5 . | . . . . . . . High Security . | . . . . . . . Max Security . | . . . . . . . Squads Dispatched 3 | . 2 1 . . . . Investigation 1 | . . 1 . . . . Extermination . | . . . . . . . Reinforcement 2 | . 2 . . . . . Assault . | . . . . . . . Garrison . | . . . . . . . Intercept . | . . . . . . . Construction Impeded . | . . . . . . . Haulers Reinforced . | . . . . . . . Stealth | -11 -10 -10 -10 -9 -8 -8 --------- Run | Scr Mat Min Exi Min Mat Gar Distress Signals . | . . . . . . . Communications Jammed . | . . . . . . . Distress Signals . | . . . . . . . Times Spotted 23 | . 1 8 . 3 2 9 Peak Tracking Total 9 | . 2 9 . 3 2 9 Tactical Retreats . | . . . . . . . Traps | -11 -10 -10 -10 -9 -8 -8 ------- Run | Scr Mat Min Exi Min Mat Gar Traps Triggered 5 | . . . . . 1 4 Indirectly . | . . . . . . . Trap Hack Attempts . | . . . . . . . Triggered . | . . . . . . . Disarmed . | . . . . . . . Reprogrammed . | . . . . . . . Reused . | . . . . . . . Traps Extracted . | . . . . . . . Installed . | . . . . . . . Triggered . | . . . . . . . Machines | -11 -10 -10 -10 -9 -8 -8 ---------- Run | Scr Mat Min Exi Min Mat Gar Machines Disabled 1 | . 1 . . . . . Max in Single Turn 1 | . 1 . . . . . Machines Sabotaged . | . . . . . . . Garrisons Compromised . | . . . . . . . Overloaded Fab Kills . | . . . . . . . Fab Network Shutdowns . | . . . . . . . Hacking | -11 -10 -10 -10 -9 -8 -8 --------- Run | Scr Mat Min Exi Min Mat Gar Machines Accessed 6 | . . 1 4 . 1 . Terminals . | . . . . . . . Fabricators . | . . . . . . . Repair Stations . | . . . . . . . Recycling Units . | . . . . . . . Scanalyzers . | . . . . . . . Garrison Access 1 | . . . . . 1 . Total Hacks 50 | . . 1 48 . 1 . Successful 50 | . . 1 48 . 1 . Failed . | . . . . . . . Catastrophic . | . . . . . . . Database Lockouts . | . . . . . . . Manual 18 | . . . 18 . . . Terminals . | . . . . . . . Fabricators . | . . . . . . . Repair Stations . | . . . . . . . Recycling Units . | . . . . . . . Scanalyzers . | . . . . . . . Garrison Access 1 | . . . . . 1 . Terminal Hacks 49 | . . 1 48 . . . Record 48 | . . . 48 . . . Open Door 1 | . . 1 . . . . Fabricator Hacks . | . . . . . . . Repair Station Hacks . | . . . . . . . Recycling Unit Hacks . | . . . . . . . Scanalyzer . | . . . . . . . Garrison Access Hacks 1 | . . . . . 1 . Unlock Access 1 | . . . . . 1 . Unauthorized Hacks . | . . . . . . . Terminals . | . . . . . . . Fabricators . | . . . . . . . Repair Stations . | . . . . . . . Recycling Units . | . . . . . . . Scanalyzers . | . . . . . . . Garrison Access . | . . . . . . . Data Cores Recovered . | . . . . . . . Used . | . . . . . . . Hacking Detections 1 | . . . . . 1 . Full Trace Events . | . . . . . . . Feedback Events . | . . . . . . . Feedback Blocked . | . . . . . . . Robot Schematics Acquired . | . . . . . . . Robots Built . | . . . . . . . Matter . | . . . . . . . Time . | . . . . . . . Total Robot Build Rating . | . . . . . . . Part Schematics Acquired . | . . . . . . . Parts Built . | . . . . . . . Matter . | . . . . . . . Time . | . . . . . . . Total Part Build Rating . | . . . . . . . Parts Repaired . | . . . . . . . Time . | . . . . . . . Parts Recycled . | . . . . . . . Recycled Matter . | . . . . . . . Retrieved Matter . | . . . . . . . Retrieved Components . | . . . . . . . Parts Scanalyzed . | . . . . . . . Part Schematics Acquired . | . . . . . . . Parts Damaged . | . . . . . . . Bothacking | -11 -10 -10 -10 -9 -8 -8 ------------ Run | Scr Mat Min Exi Min Mat Gar Used RIF Installer . | . . . . . . . Robots Hacked . | . . . . . . . Non-combat . | . . . . . . . Combat . | . . . . . . . Robot Hacks Applied . | . . . . . . . Relay Couplers Released . | . . . . . . . Robots Rewired . | . . . . . . . Allies Hacked . | . . . . . . . Hacks Repelled . | . . . . . . . Allies | -11 -10 -10 -10 -9 -8 -8 -------- Run | Scr Mat Min Exi Min Mat Gar Total Allies 2 | . . 2 . . . . Largest Group 2 | . . 2 2 . . . Highest-Rated Group 46 | . . 46 46 . . . Highest-Rated Ally 31 | . . 31 31 . . . Total Orders . | . . . . . . . Ally Attacks . | . . . . . . . Total Damage . | . . . . . . . Kills . | . . . . . . . Allies Corrupted . | . . . . . . . Allies Melted . | . . . . . . . Intel | -11 -10 -10 -10 -9 -8 -8 ------- Run | Scr Mat Min Exi Min Mat Gar Robot Analysis Total . | . . . . . . . Derelict Logs Recovered . | . . . . . . . Drone Launches . | . . . . . . . Drone Recoveries . | . . . . . . . Exploration | -11 -10 -10 -10 -9 -8 -8 ------------- Run | Scr Mat Min Exi Min Mat Gar Turns Passed 1773 | 58 148 467 659 206 116 119 Spaces Moved 1164 | 30 90 290 562 90 52 50 Core 21 | 14 . . . . . 7 Treads 316 | 16 90 210 . . . . Legs 382 | . . . 197 90 52 43 Wheels 12 | . . 12 . . . . Hover 433 | . . 68 365 . . . Flight . | . . . . . . . Fastest Speed 50 | 50 160 85 85 190 155 155 Average Speed 136 | 155 160 139 113 190 165 192 Slowest Speed 650 | 200 160 160 190 190 190 650 Overloaded Moves . | . . . . . . . Propulsion Burnouts . | . . . . . . . Robots Hopped . | . . . . . . . Cave-ins Triggered . | . . . . . . . Exploration Rate (%) 34 | 4 23 60 91 27 9 27 Regions Visited 6 Branch Regions 3 Pre-discovered Areas 1 | . . . 1 . . . Known Exits Taken 1 | . . . . . 1 . Unknown Exits Taken 5 | 1 1 1 1 1 . . Scrap Searched . | . . . . . . . Spaces Dug . | . . . . . . . Terrain Destroyed 40 | . . 32 . 8 . . Melee . | . . . . . . . Projectile . | . . . . . . . AOE 40 | . . 32 . 8 . . Actions | -11 -10 -10 -10 -9 -8 -8 --------- Run | Scr Mat Min Exi Min Mat Gar Total 1312 | 42 92 336 584 111 73 74 Wait 34 | . . 21 12 . . 1 Move 1158 | 29 89 289 561 89 51 50 Hop . | . . . . . . . Pick Up 28 | 7 2 6 2 2 9 . Fast Attach . | . . . . . . . Attach 19 | 6 . 4 1 1 6 1 Detach 1 | . . . . . . 1 Swap 13 | . . 3 5 3 1 1 Drop 8 | . . 2 3 2 1 . Fire 33 | . 1 11 . 14 5 2 Melee . | . . . . . . . Ram . | . . . . . . . Kick . | . . . . . . . Crush . | . . . . . . . Escape Stasis 18 | . . . . . . 18 Rewire . | . . . . . . . Trap . | . . . . . . . Miscellaneous . | . . . . . . . Route ------- -11/Scrapyard -10/Materials -10/Mines -10/Exiles -9/Mines -8/Materials -8/Garrison History --------- Turn | Location | Event 14 | -11/Scrapyard | Discovered new exit (range 16) 59 | -11/Scrapyard | Entered Materials 140 | -10/Materials | Discovered new exit (range 13) 207 | -10/Materials | Entered Mines 234 | -10/Mines | Met a Derelict bent on vengeance 307 | -10/Mines | Build established: Mutant 341 | -10/Mines | Met a Derelict shopkeep closing up shop 509 | -10/Mines | Assembled infested the area 554 | -10/Mines | Met 8R-AWN 661 | -10/Mines | Discovered new exit (range 5) 674 | -10/Mines | Entered Exiles 674 | -10/Exiles | Accompanied by 2 allies 696 | -10/Exiles | Welcomed by 8R-AWN 704 | -10/Exiles | Led the pair of lost Derelicts to a safe place 720 | -10/Exiles | Met EX-HEX 752 | -10/Exiles | Met EX-BIN 845 | -10/Exiles | Met EX-DEC 854 | -10/Exiles | Learned location of Zion (-7) 895 | -10/Exiles | Visited The Gauntlet 1310 | -10/Exiles | Discovered new exit (range 14) 1333 | -10/Exiles | Entered Mines 1528 | -9/Mines | Discovered new exit (range 4) 1539 | -9/Mines | Entered Materials 1539 | -8/Materials | Evolved 4 slots: Power x1, Utility x1, Weapon x2 1642 | -8/Materials | Identified exit to Garrison 1655 | -8/Materials | Entered Garrison 1724 | -8/Garrison | Triggered checkpoint 1742 | -8/Garrison | Triggered checkpoint 1761 | -8/Garrison | Core integrity fell below 50% 1766 | -8/Garrison | Core integrity fell below 20% 1774 | -8/Garrison | Destroyed by G-47 Trooper with Particle Gun Last Messages --------------- C-30 ARC bursts open, deploying its payload. G-47 Trooper unfolds itself. Beams of light sweep through the air. An alarm sounds. EM Pulse Gun destroyed. Aluminum Leg destroyed. Triggered Stasis Trap. A bubble of rippling energy engulfs the area. Field strength at 85. Lgt. Assault Rifle destroyed. Field strength at 60. Field strength at 41. Field strength at 26. Stasis field depleted. Beams of light sweep through the air. An alarm sounds. Assault Rifle destroyed. Imp. Heat Sink destroyed. Titanium Leg destroyed. Lgt. Ion Engine destroyed. Adv. Weight Redist. System destroyed. Ion Engine destroyed. Map ----- +----------------------------------------------------+ | ???????????????# #??????????????????????????????? | | ???????????????# #??????????????????????????????? | | ???????????????# #??#???######""""########??????? | | ???????????????# ####+### ?????? | | ???????????????# " ??????? | | ???????????????# ???????? | | ???????????????########### ## #? #????????? | | ???????????????????????### ## ## #????????? | | ???????????????????????# "????????? | | ???????????????????????# "????????? | | ???????????????????????# "????????? | | ???????????????????????+ "????????? | | ?????????????????????? ### ## ## #????????? | | ?????????????????????# ??# ## ## #????????? | | ????????????????????? ???# #????????? | | ???????????????????? ????# #????????? | | ???????????????????##????# #????????? | | ?????????????????????????# ## ## #????????? | | ?????????????????????????# #? #?? #????????? | | ?????????????????????????# g##+####??? #????????? | | ?????????????????????????# g+ #???????#????????? | | ?????????????????????????# #???????????????????? | | ?????????????????????????# g #???????????????????? | | ?????????????????????????# #???????????????????? | | ?????????????????######### #???????????????????? | | ?????????? @ #???????????????????? | | ?????????? #???????????????????? | | ?????????? #???????????????????? | | ???????????###### ###########???????????????????? | | ????????????????#????????????????????????????????? | | ?????????????????????????????????????????????????? | | ?????????????????????????????????????????????????? | | ?????????????????????????????????????????????????? | | ?????????????????????????????????????????????????? | | ?????????????????????????????????????????????????? | | ?????????????????????????????????????????????????? | | ?????????????????????????????????????????????????? | | ?????????????????????????????????????????????????? | | ?????????????????????????????????????????????????? | | ?????????????????????????????????????????????????? | | ?????????????????????????????????????????????????? | | ?????????????????????????????????????????????????? | | ?????????????????????????????????????????????????? | | ?????????????????????????????????????????????????? | | ?????????????????????????????????????????????????? | | ?????????????????????????????????????????????????? | | ?????????????????????????????????????????????????? | | ?????????????????????????????????????????????????? | | ?????????????????????????????????????????????????? | | ?????????????????????????????????????????????????? | +----------------------------------------------------+ Best States ------------- Heat Dissipation 45 Energy Generation 15 Energy Capacity 275 Matter Stores 300 Matter Capacity 300 Sight Range 16 Terrain Scan Density 10 Additional Mass Support 9 Evasion (%) 48 Recoil Reduction 2 Particle Charging 15 Item Schematics ----------------- None Robot Schematics ------------------ None Fabricated ------------ Nothing Alien Tech Used ----------------- None Achievements -------------- I Survived The Infestation Librarian Challenges ------------ None Game ------ Seed TerrainMiningDrive Manual? 0 Play Time 00:43:48 Cumulative 7.2 hours Start 2020.04.30 @ 04:30:16 End 2020.04.30 @ 05:25:54 Sessions 1 Manual Loads 0 Difficulty Rogue Special Mode None Game No. 8 Rogue 8 Adventurer 0 Explorer 0 Win Type - Total 0 Types 0/0/0/0/0/0/0 Lore% 13 Gallery% 12 Achievement% 9 Wizard Run 0 Options --------- ASCII 1 Keyboard 0 Movement Mouse Keybinds 0 Fullscreen 1 Font 14/Smallcaps Map View 72x54 Tactical HUD 0 Map Filters NONE Filters NONE Steam 1 RUN: 155e0252-87bf-48a8-8a67-1b47ca61e514